[Event "23rd Alekhine FIDE 2019"]
[Site "Voronezh"]
[Date "2019.06.16"]
[Round "5.13"]
[White "Mezhov, Dmitriy"]
[Black "Manukovsky, Vladimir"]
[Result "1/2-1/2"]
[ECO "B51"]
[WhiteElo "1974"]
[BlackElo "2107"]
[Annotator "RC"]
[PlyCount "150"]
[EventDate "2019.06.12"]
[EventType "swiss"]
[EventCountry "RUS"]
[SourceTitle "playchess.com"]
[Source "ChessBase"]
[SourceQuality "1"]
[TimeControl "40/5400+30:1800+30"]

1. e4 {[%emt 0:00:00]} c5 {[%emt 0:02:12]} 2. Nf3 {[%emt 0:00:00]} d6 {[%emt 0:01:32]} 3. Bb5+ {[%emt 0:00:47]} Nd7 {[%emt 0:00:17]} 4. O-O {[%emt 0:00:47]} a6 {[%emt 0:00:20]} 5. Bxd7+ Bxd7 {[%emt 0:00:09]} 6. Re1 {[%emt 0:01:10]} e6 {[%emt 0:02:22]} 7. c3 {[%emt 0:00:20]} Be7 {[%emt 0:00:37]} 8. d4 {[%emt 0:00:04]} Nf6 {[%emt 0:00:11]} 9. e5 {[%emt 0:05:55]} Nd5 {[%emt 0:05:40]} 10. c4 {[%emt 0:00:21]} Nb6 {[%emt 0:00:55]} 11. exd6 {[%emt 0:02:29]} Bxd6 {[%emt 0:00:31]} 12. b3 {[%emt 0:00:02]} O-O {[%emt 0:01:16]} 13. Bb2 {[%emt 0:00:26]} Bc6 {[%emt 0:01:20]} 14. Nbd2 {[%emt 0:01:23]} Nd7 {[%emt 0:00:57]} 15. Ne4 {[%emt 0:01:51]} Bxe4 {[%emt 0:01:41]} 16. Rxe4 {[%emt 0:00:01]} Nf6 {[%emt 0:00:18]} 17. Re1 {[%emt 0:00:47]} Rc8 {[%emt 0:01:24]} 18. Qe2 {[%emt 0:05:04]} cxd4 {[%emt 0:02:01]} 19. Bxd4 {[%emt 0:01:32]} Qc7 {[%emt 0:00:32]} 20. h3 {[%emt 0:06:03]} Rfd8 {[%emt 0:00:13]} 21. Qe3 {[%emt 0:00:34]} Bc5 {[%emt 0:03:57]} 22. Bxc5 {[%emt 0:06:40]} Qxc5 {[%emt 0:00:09]} 23. Qxc5 {[%emt 0:00:02]} Rxc5 {[%emt 0:00:24]} 24. Rad1 {[%emt 0:00:03]} Rxd1 {[%emt 0:05:01]} 25. Rxd1 {[%emt 0:00:04]} Kf8 {[%emt 0:00:08]} 26. Nd2 {[%emt 0:02:53]} Ke7 {[%emt 0:01:49]} 27. Kf1 {[%emt 0:00:43]} Rc7 {[%emt 0:00:32]} 28. Ke2 {[%emt 0:00:23]} b5 {[%emt 0:00:21]} 29. f3 {[%emt 0:10:39]} bxc4 {[%emt 0:01:16]} 30. bxc4 {[%emt 0:00:04]} Nd7 {[%emt 0:00:54]} 31. Kd3 {[%emt 0:00:21]} h5 {[%emt 0:02:37]} 32. Rb1 {[%emt 0:03:45]} g5 {[%emt 0:00:37]} 33. Kd4 {[%emt 0:03:10]} f5 {[%emt 0:01:04]} 34. h4 e5+ {[%emt 0:01:19]} 35. Ke3 {[%emt 0:05:32]} gxh4 {[%emt 0:06:29]} 36. Rh1 {[%emt 0:00:07]} Nf6 {[%emt 0:10:03]} 37. Rxh4 {[%emt 0:00:05]} Kd6 {[%emt 0:02:29]} 38. Rh1 {[%emt 0:02:35]} Rg7 {[%emt 0:03:03]} 39. Kf2 {[%emt 0:00:48]} Rb7 {[%emt 0:02:52]} 40. Nb3 {[%emt 0:01:28]} Rb4 {[%emt 0:04:57]} 41. Rd1+ {[%emt 0:31:36]} Kc7 {[%emt 0:32:43]} 42. c5 {[%emt 0:01:02]} h4 {[%emt 0:05:45]} 43. Rd6 {[%emt 0:00:11]} Nd7 {[%emt 0:02:13]} 44. Rxa6 {[%emt 0:00:33]} Rc4 {[%emt 0:01:13]} 45. Rh6 {[%emt 0:08:19]} Rc2+ {[%emt 0:01:22]} 46. Kg1 {[%emt 0:00:02]} Rxa2 {[%emt 0:01:05]} 47. Rxh4 {[%emt 0:00:04]} Rb2 {[%emt 0:04:20]} 48. Nc1 {[%emt 0:00:04]} f4 {[%emt 0:02:57]} 49. Nd3 {[%emt 0:00:53]} Rd2 {[%emt 0:00:43]} 50. Nxf4 {[%emt 0:00:23]} exf4 {[%emt 0:00:23]} 51. Rxf4 {[%emt 0:00:01]} Nxc5 {[%emt 0:00:18]} 52. Kh2 {[%emt 0:00:06]} Kd6 {[%emt 0:00:39]} 53. Kh3 {[%emt 0:00:16]} Ke5 {[%emt 0:00:19]} 54. Rg4 {[%emt 0:01:30]} Ne6 {[%emt 0:02:11]} 55. g3 {[%emt 0:01:27]} Kf5 {[%emt 0:00:33]} 56. f4 {[%emt 0:00:39]} Rd3 {[%emt 0:02:53]} 57. Rh4 {[%emt 0:00:45]} Re3 {[%emt 0:02:25]} 58. Rh5+ {[%emt 0:02:00]} Kg6 {[%emt 0:00:08]} 59. Kh4 {[%emt 0:00:08]} Nd4 {[%emt 0:02:00]} 60. g4 {[%emt 0:04:17]} Nf3+ {[%emt 0:02:29]} 61. Kg3 {[%emt 0:00:05]} Ne5+ {[%emt 0:00:27]} 62. Kh4 {[%emt 0:00:04]} Nf3+ {[%emt 0:02:37]} 63. Kg3 {[%emt 0:00:04]} Ne1+ {[%emt 0:00:32]} 64. Kf2 {[%emt 0:00:12]} Re4 {[%emt 0:00:28]} 65. Kg3 {[%emt 0:00:50]} Re3+ {[%emt 0:01:50]} 66. Kf2 {[%emt 0:00:04]} Re4 {[%emt 0:00:03]} 67. Kg3 {[%emt 0:00:06]} Nd3 {[%emt 0:01:05]} 68. f5+ {[%emt 0:05:40]} Kf6 {[%emt 0:01:18]} 69. Rh6+ {[%emt 0:00:04]} Kg7 {[%emt 0:00:11]} 70. g5 {[%emt 0:00:04]} Ne5 {[%emt 0:00:58]} 71. Re6 {[%emt 0:01:14]} Rg4+ {[%emt 0:00:58]} 72. Kh3 {[%emt 0:00:06]} Rxg5 {[%emt 0:00:25]} 73. Rxe5 {[%emt 0:00:05]} Kf6 {[%emt 0:00:02]} 74. Ra5 {[%emt 0:00:16]} Rxf5 {[%emt 0:00:02]} 75. Rxf5+ {[%emt 0:00:07]} Kxf5 {[%emt 0:00:06]} 1/2-1/2

[Event "23rd Alekhine FIDE 2019"]
[Site "Voronezh"]
[Date "2019.06.17"]
[Round "6.2"]
[White "Ashutosh, Kumar"]
[Black "Peschansky, Mikhail"]
[Result "1-0"]
[ECO "A10"]
[WhiteElo "1852"]
[BlackElo "2075"]
[Annotator "NA RC"]
[PlyCount "91"]
[EventDate "2019.06.12"]
[EventType "swiss"]
[EventCountry "RUS"]
[SourceTitle "playchess.com"]
[Source "ChessBase"]
[SourceQuality "1"]
[TimeControl "40/5400+30:1800+30"]

{[%evp 8,91,11,12,32767,32767,32767,32767,32767,32767,32767,32767,20,-4,10,1,9,-12,12,2,4,13,7,10,3,0,0,0,0,0,32767,-4,34,32767,29,32767,32767,32767,32767,32767,32767,73,83,82,112,91,124,39,32767,32767,32767,32767,32767,32767,32767,32767,135,32767,32767,32767,32767,32767,32767,310,255,165,232,32767,32767,32767,32767,274,231,289,327,345,391,32767,32767,32767,32767,32767,32767,32767,32767,2735]} 1. c4 {[%emt 0:00:00]} d6 {[%emt 0:00:10]} 2. g3 {[%emt 0:00:56]} g6 {[%emt 0:01:47]} 3. Bg2 {[%emt 0:00:26]} Bg7 {[%emt 0:02:07]} 4. Nc3 {[%emt 0:00:53]} e5 {[%emt 0:00:51]} 5. e3 {[%emt 0:00:29]} Nf6 {[%emt 0:04:34]} 6. d4 {[%emt 0:02:56]} O-O {[%emt 0:01:52]} 7. Nge2 {[%emt 0:02:04]} Nbd7 {[%emt 0:03:08]} 8. O-O {[%emt 0:00:59]} Re8 {[%emt 0:00:20]} 9. Qc2 {[%emt 0:02:51]} c6 {[%emt 0:01:25]} 10. b3 {[%emt 0:00:54]} exd4 {[%emt 0:04:55] E61: King's Indian: Early deviations for White, including Smyslov System} (10... Qe7 11. a4 exd4 12. Nxd4 a5 13. Ba3 Nc5 14. Rad1 h5 15. h3 Qc7 16. Ndb5 cxb5 17. Nxb5 Qe7 18. Nxd6 {1-0 (29) Drozdovskij,Y (2616)-Golubev,M (2479) Odessa 2018}) 11. exd4 {[%emt 0:05:41]} Nb6 {[%emt 0:00:59]} 12. Bg5 {[%emt 0:10:23]} Bf5 $146 {[%emt 0:09:23]} ({Predecessor:} 12... h6 13. Bxf6 Qxf6 14. a4 a5 15. Rfe1 Bf5 16. Qd2 Re7 17. Rac1 Rae8 18. d5 cxd5 19. Bxd5 {½-½ (33) Tremayne,D-Nevin,M England 2000}) 13. Qd2 {[%emt 0:01:55]} d5 {[%emt 0:01:09]} 14. cxd5 {[%emt 0:13:59]} Nbxd5 {[%emt 0:03:51]} 15. Nxd5 {[%emt 0:00:45]} cxd5 {[%emt 0:00:03]} 16. Nf4 {[%emt 0:04:43]} Be4 {[%emt 0:01:08]} 17. f3 {[%emt 0:01:31]} Bf5 {[%emt 0:00:54]} 18. g4 {[%emt 0:01:27]} Be6 {[%emt 0:04:33]} 19. Nxe6 {[%emt 0:09:24]} fxe6 {[%emt 0:03:53]} 20. Rfe1 {[%emt 0:10:44]} Qb6 {[%emt 0:00:31]} 21. Be3 {[%emt 0:00:50]} a5 {[%emt 0:03:50]} 22. Bh3 {[%emt 0:03:56]} Nd7 {[%emt 0:02:16]} 23. g5 {[%emt 0:00:45]} Re7 {[%emt 0:01:57]} 24. Bf2 {[%emt 0:02:10]} Nf8 {[%emt 0:02:57]} 25. Rac1 {[%emt 0:01:18]} Rf7 {[%emt 0:02:38]} 26. Bg4 {[%emt 0:00:41]} Qd6 {[%emt 0:02:23]} 27. Bg3 {[%emt 0:03:46]} (27. Kg2 $16) 27... Qb4 {[%emt 0:01:08]} 28. Rcd1 {[%emt 0:00:14]} Rc8 {[%emt 0:06:32]} 29. Rxe6 {[%emt 0:02:16]} Qxd2 {[%emt 0:10:00]} 30. Rxd2 {[%emt 0:00:07]} Nxe6 {[%emt 0:00:07]} 31. Bxe6 {[%emt 0:00:10]} Rc1+ {[%emt 0:00:04]} 32. Kg2 {[%emt 0:00:44]} Kf8 {[%emt 0:00:27]} 33. Bd6+ {[%emt 0:02:54]} Ke8 {[%emt 0:00:08]} 34. Re2 {[%emt 0:03:13]} Rd7 {[%emt 0:00:06]} 35. Bxd7+ {[%emt 0:01:04]} ({Stronger than} 35. Bxd5+ Kd8 $11) 35... Kxd7 {[%emt 0:00:43]} 36. Ba3 {[%emt 0:00:09]} Rc7 {[%emt 0:00:12]} (36... Ra1 $142) 37. Bc5 {[%emt 0:01:04]} Kc8 {[%emt 0:05:09]} 38. Re8+ {[%emt 0:01:00]} Kd7 {[%emt 0:00:03]} 39. Re7+ {[%emt 0:01:54]} Kc8 {[%emt 0:00:44]} 40. Re6 {[%emt 0:01:14]} a4 {[%emt 0:02:10]} 41. bxa4 {[%emt 0:30:27]} Rf7 {[%emt 0:30:12]} 42. Kg3 {[%emt 0:01:15]} Kc7 {[%emt 0:00:41]} 43. a5 {[%emt 0:00:49]} Bf8 {[%emt 0:01:51]} 44. Rf6 {[%emt 0:01:18]} Rxf6 {[%emt 0:00:31]} 45. gxf6 {[%emt 0:00:03]} Bd6+ {[%emt 0:00:39]} 46. Kg4 $18 {[%emt 0:01:45]} 1-0

[Event "23rd Alekhine FIDE 2019"]
[Site "Voronezh"]
[Date "2019.06.17"]
[Round "6.3"]
[White "Tatarintsev, Egor"]
[Black "Natarov, Ilya"]
[Result "1-0"]
[ECO "B03"]
[WhiteElo "2001"]
[BlackElo "2045"]
[Annotator "NA RC"]
[PlyCount "54"]
[EventDate "2019.06.12"]
[EventType "swiss"]
[EventCountry "RUS"]
[SourceTitle "playchess.com"]
[Source "ChessBase"]
[SourceQuality "1"]
[TimeControl "40/5400+30:1800+30"]

{[%evp 8,51,56,36,45,31,33,37,46,30,34,32,25,30,32767,32767,32767,0,89,50,56,54,6,26,32767,32767,32767,175,32767,168,32767,133,220,127,32767,32767,32767,32767,32767,32767,32767,32767,32767,32767,32767,391]} 1. e4 {[%emt 0:00:00]} Nf6 {[%emt 0:00:00]} 2. e5 {[%emt 0:00:35]} Nd5 {[%emt 0:00:00]} 3. c4 {[%emt 0:00:08]} Nb6 {[%emt 0:00:00]} 4. d4 {[%emt 0:00:08]} d6 {[%emt 0:00:00]} 5. exd6 {[%emt 0:00:14]} cxd6 {[%emt 0:00:00]} 6. Nc3 {[%emt 0:00:13]} g6 {[%emt 0:00:07]} 7. Be3 {[%emt 0:00:27]} Bg7 {[%emt 0:00:34]} 8. Rc1 {[%emt 0:01:26]} O-O {[%emt 0:00:07]} 9. b3 {[%emt 0:00:03]} Bf5 {[%emt 0:00:05]} 10. Be2 {[%emt 0:00:57] B03: Alekhine's Defence: Four Pawns Attack} d5 {[%emt 0:19:14]} 11. c5 {[%emt 0:00:55]} Nc8 {[%emt 0:01:14]} 12. Bf3 {[%emt 0:00:05]} Nc6 {[%emt 0:20:40]} (12... e5 $11) (12... e6 13. g4 Be4 14. Nxe4 dxe4 15. Bxe4 Nc6 16. Ne2 N8e7 17. O-O Qd7 {1-0 (34) Corrales Jimenez,F (2559)-Zhao,J (2610) chess.com INT 2019}) 13. Nge2 {[%emt 0:11:09]} e5 {[%emt 0:04:18]} 14. Bxd5 {[%emt 0:07:05]} exd4 $146 {[%emt 0:01:40]} ({Predecessor:} 14... Nb4 15. Bxb7 Nd3+ 16. Kf1 Rb8 17. Bxc8 Rxc8 {1-0 (51) Kalisky,V (2246)-Gazik,I (2314) Slovakia 2013}) 15. Bxc6 {[%emt 0:03:10]} dxc3 {[%emt 0:15:54]} 16. Qxd8 {[%emt 0:04:26]} Rxd8 {[%emt 0:00:02]} 17. Bxb7 {[%emt 0:00:18]} Rb8 {[%emt 0:00:36]} 18. c6 {[%emt 0:02:02]} c2 {[%emt 0:00:55]} 19. O-O {[%emt 0:03:31]} ({White should play} 19. Bf4 $18 Nb6 20. f3 (20. Bxb8 Rxb8 21. Ba6 Bb2 $16)) 19... Rd5 {[%emt 0:04:34]} (19... Nd6 $16 {keeps fighting.}) 20. Nf4 {[%emt 0:07:23]} Ra5 {[%emt 0:01:37]} 21. g4 {[%emt 0:02:25]} Bxg4 {[%emt 0:02:00]} 22. Rxc2 {[%emt 0:01:19]} Nd6 {[%emt 0:00:35]} 23. b4 {[%emt 0:07:53]} Ra4 {[%emt 0:03:31]} 24. Nd5 {[%emt 0:21:14]} Nxb7 {[%emt 0:01:16]} 25. Bf4 {[%emt 0:01:24]} Nd6 {[%emt 0:04:59]} 26. c7 $18 {[%emt 0:05:37]} ({Weaker is} 26. Bxd6 Rd8 $18) 26... Ra8 {[%emt 0:04:48]} 27. Bxd6 {[%emt 0:01:22]} Bc8 1-0

[Event "23rd Alekhine FIDE 2019"]
[Site "Voronezh"]
[Date "2019.06.17"]
[Round "6.5"]
[White "Kiseleva, Arina"]
[Black "Al-Hajiri, Bader"]
[Result "0-1"]
[ECO "A05"]
[WhiteElo "2049"]
[BlackElo "2121"]
[Annotator "RC"]
[PlyCount "132"]
[EventDate "2019.06.12"]
[EventType "swiss"]
[EventCountry "RUS"]
[SourceTitle "playchess.com"]
[Source "ChessBase"]
[SourceQuality "1"]
[TimeControl "40/5400+30:1800+30"]

1. Nf3 {[%emt 0:03:55]} Nf6 {[%emt 0:00:00]} 2. g3 {[%emt 0:00:28]} d5 {[%emt 0:00:30]} 3. Bg2 {[%emt 0:00:07]} g6 {[%emt 0:00:30]} 4. O-O {[%emt 0:00:15]} Bg7 {[%emt 0:00:05]} 5. c4 {[%emt 0:02:04]} c6 {[%emt 0:03:46]} 6. Qc2 {[%emt 0:07:23]} O-O {[%emt 0:00:50]} 7. d3 {[%emt 0:00:24]} Nbd7 {[%emt 0:02:33]} 8. cxd5 {[%emt 0:12:17]} cxd5 {[%emt 0:00:20]} 9. Bf4 {[%emt 0:01:00]} Ne8 {[%emt 0:02:14]} 10. Nc3 {[%emt 0:03:43]} e5 {[%emt 0:02:25]} 11. Bg5 {[%emt 0:00:28]} f6 {[%emt 0:01:19]} 12. Bd2 {[%emt 0:00:11]} Nb6 {[%emt 0:00:39]} 13. a4 {[%emt 0:02:56]} Be6 {[%emt 0:02:04]} 14. a5 {[%emt 0:00:43]} Nd7 {[%emt 0:00:06]} 15. a6 {[%emt 0:02:22]} b6 {[%emt 0:00:45]} 16. b4 {[%emt 0:01:09]} Rc8 {[%emt 0:00:37]} 17. Qb3 {[%emt 0:01:48]} Nc7 {[%emt 0:01:43]} 18. d4 {[%emt 0:01:14]} e4 {[%emt 0:05:03]} 19. Ne1 {[%emt 0:00:12]} b5 {[%emt 0:00:10]} 20. Bf4 {[%emt 0:02:32]} Nb6 {[%emt 0:02:54]} 21. Bxc7 {[%emt 0:04:01]} Qxc7 {[%emt 0:00:08]} 22. Nxe4 {[%emt 0:06:14]} Qc4 {[%emt 0:00:24]} 23. Qxc4 {[%emt 0:00:34]} Rxc4 {[%emt 0:00:06]} 24. Nc5 {[%emt 0:00:07]} Bg4 {[%emt 0:00:36]} 25. f3 {[%emt 0:02:59]} Bc8 {[%emt 0:00:18]} 26. e3 {[%emt 0:01:37]} Re8 {[%emt 0:00:57]} 27. Ra3 {[%emt 0:15:37]} Rxb4 {[%emt 0:00:32]} 28. Ned3 {[%emt 0:00:33]} Rxe3 {[%emt 0:03:46]} 29. Kf2 {[%emt 0:06:27]} Nc4 {[%emt 0:02:18]} 30. Ra2 {[%emt 0:01:46]} Ra4 {[%emt 0:01:31]} 31. Rxa4 {[%emt 0:01:35]} bxa4 {[%emt 0:01:35]} 32. f4 {[%emt 0:00:17]} Be6 {[%emt 0:00:47]} 33. Nxe6 {[%emt 0:01:40]} Rxd3 {[%emt 0:00:10]} 34. Bxd5 {[%emt 0:00:09]} Rd2+ {[%emt 0:02:01]} 35. Ke1 {[%emt 0:03:04]} Rc2 {[%emt 0:00:07]} 36. Nc5+ {[%emt 0:06:50]} Kf8 {[%emt 0:01:37]} 37. Rf3 {[%emt 0:01:11]} Nb6 {[%emt 0:01:17]} 38. Be4 {[%emt 0:00:42]} Rc1+ {[%emt 0:01:52]} 39. Kd2 {[%emt 0:00:16]} Rc4 {[%emt 0:00:04]} 40. Ne6+ {[%emt 0:01:05]} Kf7 {[%emt 0:01:08]} 41. f5 {[%emt 0:31:00]} Bh6+ {[%emt 0:31:05]} 42. Ke2 {[%emt 0:03:08]} Ke7 {[%emt 0:01:45]} 43. g4 {[%emt 0:01:28]} Bc1 {[%emt 0:00:17]} 44. Rh3 {[%emt 0:01:03]} gxf5 {[%emt 0:02:26]} 45. gxf5 {[%emt 0:00:39]} h6 {[%emt 0:00:43]} 46. Rg3 {[%emt 0:00:10]} a3 {[%emt 0:00:45]} 47. Bb1 {[%emt 0:01:53]} Rb4 {[%emt 0:02:05]} 48. Ba2 {[%emt 0:01:20]} Rb2+ {[%emt 0:01:05]} 49. Kd1 {[%emt 0:00:04]} Rxa2 {[%emt 0:00:07]} 50. Kxc1 {[%emt 0:00:06]} Nc4 {[%emt 0:00:06]} 51. Rg7+ {[%emt 0:01:55]} Kd6 {[%emt 0:00:08]} 52. Nc5 {[%emt 0:00:26]} Rxh2 {[%emt 0:01:01]} 53. Nb3 {[%emt 0:00:38]} a2 {[%emt 0:00:43]} 54. Rb7 {[%emt 0:00:37]} Rb2 {[%emt 0:00:16]} 55. Na1 {[%emt 0:00:23]} Rxb7 {[%emt 0:02:16]} 56. axb7 {[%emt 0:00:09]} Kc7 {[%emt 0:00:03]} 57. Kc2 {[%emt 0:00:19]} h5 {[%emt 0:00:17]} 58. Kd3 {[%emt 0:00:17]} h4 {[%emt 0:00:11]} 59. Ke2 {[%emt 0:00:27]} a5 {[%emt 0:00:18]} 60. Kf3 {[%emt 0:00:15]} a4 {[%emt 0:00:27]} 61. Kg4 {[%emt 0:00:17]} Nd2 {[%emt 0:00:06]} 62. Kxh4 {[%emt 0:00:19]} Nb3 {[%emt 0:00:01]} 63. Nc2 {[%emt 0:00:23]} Nxd4 {[%emt 0:00:42]} 64. Na1 {[%emt 0:00:23]} Nxf5+ {[%emt 0:00:34]} 65. Kh5 {[%emt 0:00:05]} Nd4 {[%emt 0:00:08]} 66. Kg6 {[%emt 0:00:06]} Nb3 {[%emt 0:00:04]} 0-1

[Event "23rd Alekhine FIDE 2019"]
[Site "Voronezh"]
[Date "2019.06.17"]
[Round "6.6"]
[White "Zakirov, Vladislav"]
[Black "Artemov, Nikita"]
[Result "0-1"]
[ECO "B56"]
[WhiteElo "2099"]
[BlackElo "2028"]
[Annotator "NA RC"]
[PlyCount "102"]
[EventDate "2019.06.12"]
[EventType "swiss"]
[EventCountry "RUS"]
[SourceTitle "playchess.com"]
[Source "ChessBase"]
[SourceQuality "1"]
[TimeControl "40/5400+30:1800+30"]

{[%evp 8,102,34,30,29,3,34,32767,32767,32767,32767,32767,86,82,84,39,46,45,36,28,87,32767,32767,19,80,70,32767,146,32767,32767,32767,32767,32767,54,72,41,32767,79,92,32767,32767,32767,32767,32767,32767,32767,120,0,0,32767,32767,32767,32767,-48,32767,-346,32767,32767,-318,-317,32767,32767,32767,32767,-409,-407,32767,32767,-299,-323,-274,-297,-315,-302,-325,-330,-318,-397,-382,-1613,-69,-1165,-6288,-5210,-29954,-1444,-5321,-29985,-29976,-12406,-29971,-29987,-29976,-29977,-29979,-29979,-29981]} 1. e4 {[%emt 0:00:00]} c5 {[%emt 0:03:59]} 2. Nf3 {[%emt 0:00:00]} d6 {[%emt 0:00:05]} 3. d4 {[%emt 0:00:00]} cxd4 4. Nxd4 Nf6 {[%emt 0:00:50]} 5. Nc3 {[%emt 0:00:24]} Nc6 {[%emt 0:00:04]} 6. h3 {[%emt 0:00:12]} g6 {[%emt 0:02:10]} 7. g4 {[%emt 0:00:24]} Bg7 {[%emt 0:00:25]} 8. Be3 {[%emt 0:00:44]} a6 {[%emt 0:11:23] B72: Sicilian Dragon: 6 Be3, lines with h3+Bc4 and sidelines} 9. Bg2 {[%emt 0:05:35]} (9. Qd2 h5 10. g5 Nd7 11. O-O-O O-O 12. f4 Nb6 13. Qf2 Nxd4 14. Bxd4 Bxd4 15. Qxd4 Be6 {½-½ (89) Amonatov,F (2620)-Mareco,S (2635) Doha 2016}) 9... Ne5 {[%emt 0:15:09]} 10. Qe2 {[%emt 0:06:13]} Qc7 {[%emt 0:10:36]} 11. g5 $146 {[%emt 0:02:14]} ({Predecessor:} 11. O-O-O e6 12. Rh2 O-O 13. g5 Ne8 14. h4 f5 15. gxf6 Nxf6 {0-1 (31) Martinez,A-Prieto Martinez,F Zaragoza 1990}) 11... Nh5 {[%emt 0:00:45]} 12. Nd5 {[%emt 0:01:00]} Qa5+ {[%emt 0:01:41]} 13. c3 {[%emt 0:17:24]} Qd8 {[%emt 0:00:27]} (13... Bd7 $11 {remains equal.}) 14. O-O-O {[%emt 0:08:23]} e6 {[%emt 0:12:36]} 15. Nb4 {[%emt 0:03:36]} O-O {[%emt 0:02:04]} (15... Qc7 $1 $11 {remains equal.}) 16. f4 {[%emt 0:02:20]} Nc6 {[%emt 0:07:56]} 17. Ndxc6 {[%emt 0:04:26]} ({Much less strong is} 17. Nbxc6 bxc6 18. Nxc6 Qc7 $16) 17... bxc6 {[%emt 0:00:09]} 18. Qf2 {[%emt 0:00:33]} a5 {[%emt 0:02:09]} 19. Nxc6 {[%emt 0:02:22]} Qc7 {[%emt 0:01:58]} 20. e5 $1 {[%emt 0:04:44]} d5 {[%emt 0:00:05]} 21. Nd4 {[%emt 0:00:12]} a4 {[%emt 0:01:08]} 22. a3 {[%emt 0:00:50]} Rb8 {[%emt 0:02:19]} 23. Bf3 {[%emt 0:03:47]} Qc4 {[%emt 0:00:51]} 24. Bxh5 {[%emt 0:06:41]} gxh5 {[%emt 0:02:06]} 25. Nc2 {[%emt 0:00:27]} Ba6 {[%emt 0:02:12]} 26. Nb4 {[%emt 0:02:19]} Rfc8 {[%emt 0:03:14]} 27. Nxa6 {[%emt 0:03:01]} (27. Rd4 $16 Qe2 28. Rh2 (28. Nxa6 Qxa6 29. Qc2 Rb3 $11) 28... Qxf2 29. Rxf2) 27... Qxa6 {[%emt 0:00:33]} 28. Bc5 {[%emt 0:01:38]} Qc4 {[%emt 0:02:12]} 29. Bb4 {[%emt 0:01:35]} Qa2 {[%emt 0:02:21]} 30. Qc2 {[%emt 0:01:22]} Bf8 {[%emt 0:00:59]} 31. Rh2 $2 {[%emt 0:08:54]} (31. b3 $17 {was necessary.} Qxc2+ 32. Kxc2) 31... Bxb4 {[%emt 0:00:49]} 32. axb4 {[%emt 0:00:04] [#]} Rxb4 $3 {[%emt 0:05:22]} 33. cxb4 {[%emt 0:00:05]} Rc4 {[%emt 0:01:27]} 34. Re2 {[%emt 0:03:56]} a3 {[%emt 0:01:39]} 35. bxa3 {[%emt 0:00:20]} Qxa3+ {[%emt 0:00:34]} (35... Rxc2+ $2 36. Rxc2 Qa1+ 37. Kd2 $19) 36. Kb1 {[%emt 0:01:26]} Rxc2 {[%emt 0:00:15]} 37. Kxc2 {[%emt 0:00:08]} Qxb4 {[%emt 0:00:10]} 38. Rf1 {[%emt 0:00:14]} Kg7 {[%emt 0:00:57]} 39. Rf3 {[%emt 0:01:05]} Kg6 {[%emt 0:00:55]} 40. Ref2 {[%emt 0:01:29]} Kf5 {[%emt 0:00:20]} 41. Kd3 {[%emt 0:31:07]} Qb1+ {[%emt 0:30:47]} 42. Ke3 {[%emt 0:00:24]} Qd1 {[%emt 0:00:39]} 43. Re2 {[%emt 0:00:59]} (43. Rf1 $142 d4+ 44. Kf2 Qc2+ 45. Kg3) 43... d4+ {[%emt 0:01:29]} 44. Kf2 {[%emt 0:00:08]} d3 {[%emt 0:00:30]} 45. Ree3 {[%emt 0:00:44]} Qc2+ {[%emt 0:00:26]} 46. Kg3 {[%emt 0:00:09]} d2 {[%emt 0:00:11]} 47. Rf2 {[%emt 0:00:07]} d1=Q {[%emt 0:00:20]} 48. Rxc2 {[%emt 0:00:09]} Qxc2 {[%emt 0:00:04]} 49. Rf3 {[%emt 0:00:03]} Qe2 {[%emt 0:00:43]} 50. Rf2 {[%emt 0:00:09] [#]} h4+ {[%emt 0:00:11]} 51. Kg2 {[%emt 0:00:04]} Qxf2+ {[%emt 0:00:25]} 0-1